[Event "Int SVK-ch Open 2020"]
[Site "Drienica"]
[Date "2020.08.07"]
[Round "1.1"]
[White "Panko, Radoslav"]
[Black "Budjac, Martin"]
[Result "1-0"]
[ECO "A01"]
[WhiteElo "2039"]
[BlackElo "1657"]
[Annotator "ChessBase"]
[PlyCount "49"]
[EventDate "2020.08.07"]
[EventType "swiss"]
[EventCountry "SVK"]
[SourceTitle "playchess.com"]
[Source "ChessBase"]
[SourceQuality "1"]
[TimeControl "40/5400+30:1800+30"]

1. b3 {[%emt 0:00:00]} d5 {[%emt 0:00:23]} 2. Bb2 {[%emt 0:00:02]} e6 {[%emt 0:00:29]} 3. e3 {[%emt 0:00:17]} Nf6 {[%emt 0:01:01]} 4. Nf3 {[%emt 0:00:24]} c5 {[%emt 0:01:16]} 5. d4 {[%emt 0:00:16]} Nc6 {[%emt 0:01:49]} 6. Nbd2 {[%emt 0:00:30]} Be7 {[%emt 0:02:11]} 7. Bd3 {[%emt 0:00:32]} Bd7 {[%emt 0:01:14]} 8. a3 {[%emt 0:00:15]} O-O {[%emt 0:02:55]} 9. O-O {[%emt 0:01:56]} cxd4 {[%emt 0:03:37]} 10. exd4 {[%emt 0:03:20]} a6 {[%emt 0:02:20]} 11. Ne5 {[%emt 0:00:46]} b5 {[%emt 0:02:02]} 12. f4 {[%emt 0:03:16]} Qc7 {[%emt 0:03:24]} 13. Qe2 {[%emt 0:02:26]} Ne8 {[%emt 0:09:59]} 14. Rf3 {[%emt 0:29:52]} f5 {[%emt 0:05:22]} 15. Re1 {[%emt 0:18:14]} Rf6 {[%emt 0:10:35]} 16. g4 {[%emt 0:03:20]} fxg4 {[%emt 0:09:14]} 17. Nxg4 {[%emt 0:03:28]} Rxf4 {[%emt 0:02:00]} 18. Rh3 {[%emt 0:02:35]} e5 {[%emt 0:08:24]} 19. Bxh7+ {[%emt 0:00:48]} Kf8 {[%emt 0:00:13]} 20. Bg6 {[%emt 0:00:47]} Kg8 {[%emt 0:10:04]} 21. Nxe5 {[%emt 0:13:45]} Bxh3 {[%emt 0:05:00]} 22. Qh5 {[%emt 0:00:07]} Rg4+ {[%emt 0:04:28]} 23. Nxg4 {[%emt 0:00:07]} Bxg4 {[%emt 0:00:09]} 24. Qh7+ {[%emt 0:00:07]} Kf8 {[%emt 0:00:11]} 25. Qh8# 1-0

[Event "Int SVK-ch Open 2020"]
[Site "Drienica"]
[Date "2020.08.07"]
[Round "1.1"]
[White "Bakalar Jan"]
[Black "Bures Jaroslav"]
[Result "0-1"]
[ECO "B47"]
[WhiteElo "1889"]
[BlackElo "2396"]
[Annotator "ChessBase"]
[PlyCount "58"]
[EventDate "2020.08.07"]
[EventType "swiss"]
[EventCountry "SVK"]
[SourceTitle "playchess.com"]
[Source "ChessBase"]
[SourceQuality "1"]
[TimeControl "40/5400+30:1800+30"]

1. e4 {[%emt 0:00:00]} c5 {[%emt 0:00:00]} 2. Nf3 {[%emt 0:00:00]} e6 {[%emt 0:00:00]} 3. d4 {[%emt 0:00:37]} cxd4 {[%emt 0:00:00]} 4. Nxd4 {[%emt 0:00:08]} Nc6 {[%emt 0:00:00]} 5. Nc3 {[%emt 0:00:44]} Qc7 {[%emt 0:00:32]} 6. g3 {[%emt 0:02:54]} d6 {[%emt 0:00:32]} 7. Bg2 {[%emt 0:00:29]} Bd7 {[%emt 0:00:03]} 8. O-O {[%emt 0:02:14]} Nf6 {[%emt 0:00:05]} 9. Kh1 {[%emt 0:02:25]} Be7 {[%emt 0:00:43]} 10. f4 {[%emt 0:04:18]} a6 {[%emt 0:01:12]} 11. f5 {[%emt 0:01:40]} Rc8 {[%emt 0:02:47]} 12. fxe6 {[%emt 0:12:36]} fxe6 {[%emt 0:00:08]} 13. Nxc6 {[%emt 0:01:09]} Bxc6 {[%emt 0:02:04]} 14. Be3 {[%emt 0:09:06]} b5 {[%emt 0:00:58]} 15. a3 {[%emt 0:03:03]} Qb7 {[%emt 0:01:20]} 16. Rxf6 {[%emt 0:04:31]} Bxf6 {[%emt 0:09:03]} 17. Qxd6 {[%emt 0:00:30]} Qe7 {[%emt 0:09:32]} 18. Qd2 {[%emt 0:04:36]} O-O {[%emt 0:00:30]} 19. Rb1 {[%emt 0:02:24]} Bxc3 {[%emt 0:03:43]} 20. bxc3 {[%emt 0:00:30]} Qxa3 {[%emt 0:02:25]} 21. Rb4 {[%emt 0:02:53]} Qa1+ {[%emt 0:00:30]} 22. Bg1 {[%emt 0:00:30]} Ba8 {[%emt 0:00:30]} 23. Qd7 {[%emt 0:02:49]} Qxc3 {[%emt 0:02:49]} 24. Qxe6+ {[%emt 0:01:35]} Kh8 {[%emt 0:00:08]} 25. Rd4 {[%emt 0:02:01]} a5 {[%emt 0:02:06]} 26. Rd7 {[%emt 0:02:47]} Rce8 {[%emt 0:04:01]} 27. Qg4 {[%emt 0:00:29]} Rd8 {[%emt 0:04:09]} 28. Re7 {[%emt 0:03:56]} Qa1 {[%emt 0:01:33]} 29. Bf3 {[%emt 0:01:11]} Qf6 {[%emt 0:00:20]} 0-1

[Event "Int SVK-ch Open 2020"]
[Site "Drienica"]
[Date "2020.08.07"]
[Round "1.2"]
[White "Czebe Attila"]
[Black "Marsina Stefan"]
[Result "1-0"]
[ECO "C00"]
[WhiteElo "2378"]
[BlackElo "1880"]
[Annotator "RC"]
[PlyCount "95"]
[EventDate "2020.08.07"]
[EventType "swiss"]
[EventCountry "SVK"]
[SourceTitle "playchess.com"]
[Source "ChessBase"]
[SourceQuality "1"]
[TimeControl "40/5400+30:1800+30"]

1. e4 {[%emt 0:00:00]} e6 {[%emt 0:00:00]} 2. Qe2 {[%emt 0:00:00]} c5 {[%emt 0:00:34]} 3. g3 {[%emt 0:00:54]} g6 {[%emt 0:00:27]} 4. Bg2 {[%emt 0:00:37]} Nc6 {[%emt 0:00:52]} 5. Nf3 {[%emt 0:00:43]} Bg7 {[%emt 0:00:46]} 6. O-O {[%emt 0:00:23]} Nge7 {[%emt 0:03:09]} 7. c3 {[%emt 0:02:54]} O-O {[%emt 0:01:09]} 8. d4 {[%emt 0:00:28]} cxd4 {[%emt 0:19:10]} 9. cxd4 {[%emt 0:00:12]} Nxd4 {[%emt 0:00:51]} 10. Nxd4 {[%emt 0:00:09]} Bxd4 {[%emt 0:00:04]} 11. Nc3 {[%emt 0:00:42]} Bg7 {[%emt 0:02:07]} 12. Nb5 {[%emt 0:00:52]} d5 {[%emt 0:05:01]} 13. Rd1 {[%emt 0:01:34]} a6 {[%emt 0:02:47]} 14. Nc3 {[%emt 0:00:04]} d4 {[%emt 0:00:49]} 15. e5 {[%emt 0:00:30]} Qa5 {[%emt 0:03:24]} 16. Rxd4 {[%emt 0:00:26]} Qxe5 {[%emt 0:01:45]} 17. Re4 {[%emt 0:00:05]} Qa5 {[%emt 0:02:39]} 18. Ra4 {[%emt 0:02:08]} Qc7 {[%emt 0:01:42]} 19. Rc4 {[%emt 0:04:04]} Nc6 {[%emt 0:09:58]} 20. Bf4 {[%emt 0:02:58]} e5 {[%emt 0:18:10]} 21. Be3 {[%emt 0:00:00]} Be6 {[%emt 0:00:30]} 22. Bd5 {[%emt 0:00:30]} Rad8 {[%emt 0:09:44]} 23. Bxe6 {[%emt 0:00:00]} fxe6 {[%emt 0:00:01]} 24. Ne4 {[%emt 0:00:11]} Rd5 {[%emt 0:01:42]} 25. Rac1 {[%emt 0:00:56]} Rfd8 {[%emt 0:04:26]} 26. Qg4 {[%emt 0:01:47]} Qf7 {[%emt 0:01:54]} 27. Bb6 {[%emt 0:03:30]} Rf8 {[%emt 0:01:04]} 28. Ng5 {[%emt 0:00:53]} Qf5 {[%emt 0:00:17]} 29. Nxe6 {[%emt 0:01:03]} Qxg4 {[%emt 0:01:00]} 30. Rxg4 {[%emt 0:00:04]} Rf6 {[%emt 0:00:31]} 31. Nxg7 {[%emt 0:08:37]} Kxg7 {[%emt 0:00:21]} 32. Be3 {[%emt 0:00:03]} Rfd6 {[%emt 0:00:22]} 33. Kg2 {[%emt 0:00:19]} Rd1 {[%emt 0:00:36]} 34. Rc3 {[%emt 0:00:48]} Kf6 {[%emt 0:01:23]} 35. Rgc4 {[%emt 0:07:53]} Ke6 {[%emt 0:01:41]} 36. Re4 {[%emt 0:01:29]} R1d3 {[%emt 0:01:36]} 37. Rc2 {[%emt 0:00:52]} Kf5 {[%emt 0:01:32]} 38. Rec4 {[%emt 0:02:08]} Ke6 {[%emt 0:00:10]} 39. Re2 {[%emt 0:00:29]} Rd1 {[%emt 0:01:26]} 40. Rc3 {[%emt 0:13:26]} R6d3 {[%emt 0:02:12]} 41. Rc4 {[%emt 0:33:44]} Kd5 {[%emt 0:32:07]} 42. b3 {[%emt 0:05:45]} Kd6 {[%emt 0:00:00]} 43. Rh4 {[%emt 0:00:00]} h5 {[%emt 0:00:00]} 44. Re4 {[%emt 0:00:00]} Rd5 {[%emt 0:00:00]} 45. Rc2 {[%emt 0:00:00]} Ke6 {[%emt 0:00:00]} 46. Ra4 {[%emt 0:00:00]} Rb5 {[%emt 0:00:00]} 47. Rc3 {[%emt 0:00:00]} Rb4 {[%emt 0:00:00]} 48. Rxc6+ {[%emt 0:00:00]} 1-0

[Event "Int SVK-ch Open 2020"]
[Site "Drienica"]
[Date "2020.08.07"]
[Round "1.2"]
[White "Cisarik, Pavol"]
[Black "Varga, Lukas"]
[Result "0-1"]
[ECO "B22"]
[WhiteElo "1646"]
[BlackElo "2036"]
[Annotator "ChessBase"]
[PlyCount "36"]
[EventDate "2020.08.07"]
[EventType "swiss"]
[EventCountry "SVK"]
[SourceTitle "playchess.com"]
[Source "ChessBase"]
[SourceQuality "1"]
[TimeControl "40/5400+30:1800+30"]

1. e4 {[%emt 0:00:00]} c5 {[%emt 0:00:20]} 2. c3 {[%emt 0:00:13]} d5 {[%emt 0:00:05]} 3. exd5 {[%emt 0:00:07]} Qxd5 {[%emt 0:00:05]} 4. Nf3 {[%emt 0:01:52]} Nf6 {[%emt 0:00:53]} 5. d4 {[%emt 0:01:49]} Bg4 {[%emt 0:01:32]} 6. Be2 {[%emt 0:00:25]} e6 {[%emt 0:01:40]} 7. c4 {[%emt 0:07:42]} Qd7 {[%emt 0:01:19]} 8. Be3 {[%emt 0:02:14]} cxd4 {[%emt 0:00:48]} 9. Qxd4 {[%emt 0:03:26]} Qc7 {[%emt 0:03:22]} 10. Nc3 {[%emt 0:03:51]} Nc6 {[%emt 0:00:50]} 11. Nb5 {[%emt 0:04:26]} Qb8 {[%emt 0:05:45]} 12. Bf4 {[%emt 0:05:45]} Nxd4 {[%emt 0:00:27]} 13. Bxb8 {[%emt 0:00:09]} Nxb5 {[%emt 0:00:12]} 14. Be5 {[%emt 0:01:49]} Nd6 {[%emt 0:01:51]} 15. O-O-O {[%emt 0:02:01]} Nde4 {[%emt 0:01:56]} 16. Rhf1 {[%emt 0:01:19]} Bc5 {[%emt 0:02:13]} 17. Nd4 {[%emt 0:01:00]} Bxd4 {[%emt 0:00:36]} 18. Bxg4 {[%emt 0:00:27]} Bxe5 {[%emt 0:00:14]} 0-1

[Event "Int SVK-ch Open 2020"]
[Site "Drienica"]
[Date "2020.08.07"]
[Round "1.3"]
[White "Garancovsky, Pavol"]
[Black "Ivanecka, Natalia"]
[Result "1-0"]
[ECO "A45"]
[WhiteElo "2027"]
[BlackElo "1641"]
[Annotator "ChessBase"]
[PlyCount "43"]
[EventDate "2020.08.07"]
[EventType "swiss"]
[EventCountry "SVK"]
[SourceTitle "playchess.com"]
[Source "ChessBase"]
[SourceQuality "1"]
[TimeControl "40/5400+30:1800+30"]

1. d4 {[%emt 0:00:26]} Nf6 {[%emt 0:00:00]} 2. g3 {[%emt 0:00:32]} e6 {[%emt 0:00:48]} 3. Bg2 {[%emt 0:00:23]} d5 {[%emt 0:00:30]} 4. Nf3 {[%emt 0:00:18]} c5 {[%emt 0:02:26]} 5. O-O {[%emt 0:00:17]} Nbd7 {[%emt 0:05:31]} 6. c4 {[%emt 0:01:34]} Be7 {[%emt 0:04:13]} 7. cxd5 {[%emt 0:03:57]} Nxd5 {[%emt 0:06:56]} 8. e4 {[%emt 0:03:00]} N5f6 {[%emt 0:00:20]} 9. Nc3 {[%emt 0:20:56]} cxd4 {[%emt 0:01:19]} 10. Qxd4 {[%emt 0:01:52]} Bc5 {[%emt 0:01:34]} 11. Qa4 {[%emt 0:02:38]} O-O {[%emt 0:03:03]} 12. Bg5 {[%emt 0:05:43]} Qb6 {[%emt 0:04:10]} 13. Qc2 {[%emt 0:01:56]} Qc6 {[%emt 0:02:20]} 14. Rad1 {[%emt 0:05:04]} h6 {[%emt 0:01:57]} 15. Bc1 {[%emt 0:09:59]} e5 {[%emt 0:02:20]} 16. Nd5 {[%emt 0:01:19]} Re8 {[%emt 0:03:51]} 17. Nh4 {[%emt 0:06:03]} Nf8 {[%emt 0:12:39]} 18. Nxf6+ {[%emt 0:06:12]} gxf6 {[%emt 0:02:49]} 19. Qe2 {[%emt 0:10:25]} Nh7 {[%emt 0:15:35]} 20. Nf5 {[%emt 0:04:09]} Bf8 {[%emt 0:08:28]} 21. Qh5 {[%emt 0:05:40]} Ng5 {[%emt 0:03:47]} 22. h4 {[%emt 0:00:43]} 1-0

[Event "Int SVK-ch Open 2020"]
[Site "Drienica"]
[Date "2020.08.07"]
[Round "1.3"]
[White "Nandrazi Dominik"]
[Black "Manik Mikulas"]
[Result "0-1"]
[ECO "D01"]
[WhiteElo "1878"]
[BlackElo "2366"]
[Annotator "ChessBase"]
[PlyCount "102"]
[EventDate "2020.08.07"]
[EventType "swiss"]
[EventCountry "SVK"]
[SourceTitle "playchess.com"]
[Source "ChessBase"]
[SourceQuality "1"]
[TimeControl "40/5400+30:1800+30"]

1. d4 {[%emt 0:00:00]} Nf6 {[%emt 0:00:00]} 2. Nc3 {[%emt 0:00:05]} d5 {[%emt 0:00:21]} 3. Bg5 {[%emt 0:00:29]} c6 {[%emt 0:00:07]} 4. Bxf6 {[%emt 0:01:11]} exf6 {[%emt 0:00:29]} 5. Nf3 {[%emt 0:01:17]} Qb6 {[%emt 0:02:14]} 6. Rb1 {[%emt 0:02:18]} f5 {[%emt 0:08:33]} 7. e3 {[%emt 0:01:29]} g6 {[%emt 0:01:00]} 8. Be2 {[%emt 0:02:05]} Bg7 {[%emt 0:00:12]} 9. b4 {[%emt 0:05:05]} O-O {[%emt 0:02:24]} 10. O-O {[%emt 0:07:55]} a6 {[%emt 0:04:52]} 11. a4 {[%emt 0:00:21]} Qc7 {[%emt 0:01:57]} 12. Re1 {[%emt 0:07:07]} a5 {[%emt 0:07:13]} 13. b5 {[%emt 0:03:33]} Be6 {[%emt 0:07:10]} 14. Ng5 {[%emt 0:03:44]} Nd7 {[%emt 0:03:44]} 15. Bf3 {[%emt 0:04:28]} Nf6 {[%emt 0:05:49]} 16. Ne2 {[%emt 0:01:27]} Bd7 {[%emt 0:02:05]} 17. bxc6 {[%emt 0:11:31]} bxc6 {[%emt 0:04:12]} 18. Nh3 {[%emt 0:03:31]} Rfb8 {[%emt 0:05:10]} 19. Nhf4 {[%emt 0:01:09]} Rxb1 {[%emt 0:00:57]} 20. Qxb1 {[%emt 0:00:06]} g5 {[%emt 0:00:13]} 21. Nh5 {[%emt 0:00:32]} g4 {[%emt 0:02:10]} 22. Nxf6+ {[%emt 0:01:57]} Bxf6 {[%emt 0:00:03]} 23. Bxd5 {[%emt 0:00:41]} cxd5 {[%emt 0:00:12]} 24. Nf4 {[%emt 0:00:04]} Qc4 {[%emt 0:07:03]} 25. Qb7 {[%emt 0:02:42]} Bc6 {[%emt 0:01:12]} 26. Qc7 {[%emt 0:00:28]} Bxa4 {[%emt 0:00:34]} 27. Qd6 {[%emt 0:00:08]} Qc6 {[%emt 0:01:11]} 28. Qa3 {[%emt 0:00:16]} Bb5 {[%emt 0:07:57]} 29. h3 {[%emt 0:01:40]} gxh3 {[%emt 0:02:44]} 30. e4 {[%emt 0:01:32]} dxe4 {[%emt 0:00:50]} 31. Qg3+ {[%emt 0:00:51]} Kh8 {[%emt 0:00:14]} 32. Qxh3 {[%emt 0:01:07]} Re8 {[%emt 0:07:06]} 33. d5 {[%emt 0:02:54]} Qc3 {[%emt 0:00:47]} 34. Re3 {[%emt 0:00:03]} Qa1+ {[%emt 0:00:21]} 35. Kh2 {[%emt 0:00:01]} Qe5 {[%emt 0:00:54]} 36. Qh6 {[%emt 0:00:33]} Qxf4+ {[%emt 0:05:00]} 37. Qxf4 {[%emt 0:00:01]} Be5 {[%emt 0:00:09]} 38. Qxe5+ {[%emt 0:00:04]} Rxe5 {[%emt 0:00:04]} 39. Ra3 {[%emt 0:00:04]} a4 {[%emt 0:00:33]} 40. c4 {[%emt 0:00:05]} Bxc4 {[%emt 0:00:09]} 41. Rxa4 {[%emt 0:30:05]} Bxd5 {[%emt 0:30:11]} 42. Kg3 {[%emt 0:00:08]} e3 {[%emt 0:00:30]} 43. fxe3 {[%emt 0:00:15]} Rxe3+ {[%emt 0:00:08]} 44. Kf2 {[%emt 0:00:04]} Re4 {[%emt 0:00:13]} 45. Ra5 {[%emt 0:00:14]} Be6 {[%emt 0:00:08]} 46. Kf3 {[%emt 0:00:42]} Kg7 {[%emt 0:00:08]} 47. g3 {[%emt 0:00:20]} h5 {[%emt 0:00:04]} 48. Ra1 {[%emt 0:00:21]} h4 {[%emt 0:00:08]} 49. gxh4 {[%emt 0:00:14]} Rxh4 {[%emt 0:00:07]} 50. Kg3 {[%emt 0:00:31]} Rg4+ {[%emt 0:00:06]} 51. Kf2 {[%emt 0:00:08]} f4 {[%emt 0:00:06]} 0-1

[Event "Int SVK-ch Open 2020"]
[Site "Drienica"]
[Date "2020.08.07"]
[Round "1.4"]
[White "Orsag Milan"]
[Black "Zahradnik Vladimir"]
[Result "1/2-1/2"]
[ECO "E16"]
[WhiteElo "2300"]
[BlackElo "1874"]
[Annotator "RC"]
[PlyCount "98"]
[EventDate "2020.08.07"]
[EventType "swiss"]
[EventCountry "SVK"]
[SourceTitle "playchess.com"]
[Source "ChessBase"]
[SourceQuality "1"]
[TimeControl "40/5400+30:1800+30"]

1. d4 {[%emt 0:00:00]} Nf6 {[%emt 0:00:00]} 2. Nf3 {[%emt 0:00:13]} b6 {[%emt 0:00:41]} 3. g3 {[%emt 0:01:48]} Bb7 {[%emt 0:00:00]} 4. Bg2 {[%emt 0:00:09]} e6 {[%emt 0:00:47]} 5. c4 {[%emt 0:02:16]} Bb4+ {[%emt 0:00:46]} 6. Bd2 {[%emt 0:00:11]} Bxd2+ {[%emt 0:00:24]} 7. Nbxd2 {[%emt 0:00:10]} O-O {[%emt 0:00:14]} 8. Qc2 {[%emt 0:02:12]} d5 {[%emt 0:08:39]} 9. O-O {[%emt 0:03:19]} Na6 {[%emt 0:01:52]} 10. cxd5 {[%emt 0:07:14]} exd5 {[%emt 0:01:30]} 11. Rac1 {[%emt 0:02:29]} c5 {[%emt 0:00:29]} 12. a3 {[%emt 0:11:53]} Ne4 {[%emt 0:05:58]} 13. dxc5 {[%emt 0:14:41]} Naxc5 {[%emt 0:00:17]} 14. b4 {[%emt 0:05:01]} Ne6 {[%emt 0:02:42]} 15. Ne5 {[%emt 0:13:56]} Nd4 {[%emt 0:04:18]} 16. Qd3 {[%emt 0:06:43]} Nxd2 {[%emt 0:00:13]} 17. Qxd2 {[%emt 0:00:28]} Nb3 {[%emt 0:00:07]} 18. Qd3 {[%emt 0:03:27]} Nxc1 {[%emt 0:00:12]} 19. Rxc1 {[%emt 0:00:02]} Qe7 {[%emt 0:03:11]} 20. Nf3 {[%emt 0:01:27]} Rac8 {[%emt 0:01:01]} 21. Rd1 {[%emt 0:01:01]} Rc4 {[%emt 0:03:06]} 22. Nd4 {[%emt 0:02:01]} Rfc8 {[%emt 0:03:26]} 23. Bh3 {[%emt 0:03:31]} Rd8 {[%emt 0:01:04]} 24. e3 {[%emt 0:02:45]} g6 {[%emt 0:01:45]} 25. Bg2 {[%emt 0:01:10]} a6 {[%emt 0:00:41]} 26. h4 {[%emt 0:00:26]} Qc7 {[%emt 0:06:53]} 27. Ne2 {[%emt 0:02:52]} b5 {[%emt 0:01:12]} 28. h5 {[%emt 0:03:04]} Kg7 {[%emt 0:03:05]} 29. Nd4 {[%emt 0:04:50]} Qe5 {[%emt 0:01:54]} 30. Bf3 {[%emt 0:00:36]} Rdc8 {[%emt 0:01:05]} 31. Qd2 {[%emt 0:00:39]} h6 {[%emt 0:01:37]} 32. hxg6 {[%emt 0:00:46]} fxg6 {[%emt 0:00:09]} 33. Kg2 {[%emt 0:00:19]} Re8 {[%emt 0:05:33]} 34. Rh1 {[%emt 0:00:26]} Bc8 {[%emt 0:03:08]} 35. g4 {[%emt 0:03:09]} Qg5 {[%emt 0:01:13]} 36. Kg3 {[%emt 0:01:26]} h5 {[%emt 0:12:31]} 37. Rh4 {[%emt 0:00:30]} Bd7 {[%emt 0:01:00]} 38. Be2 {[%emt 0:00:30]} Qe5+ {[%emt 0:02:12]} 39. f4 {[%emt 0:00:54]} Qxe3+ {[%emt 0:00:19]} 40. Qxe3 {[%emt 0:00:04]} Rxe3+ {[%emt 0:00:07]} 41. Kf2 {[%emt 0:30:02]} Rxa3 {[%emt 0:30:44]} 42. Bxc4 {[%emt 0:00:25]} dxc4 {[%emt 0:01:07]} 43. gxh5 {[%emt 0:00:17]} gxh5 {[%emt 0:09:16]} 44. Rxh5 {[%emt 0:00:10]} a5 {[%emt 0:00:31]} 45. Rd5 {[%emt 0:02:05]} Be8 {[%emt 0:01:15]} 46. bxa5 {[%emt 0:00:37]} Rxa5 {[%emt 0:00:18]} 47. Rc5 {[%emt 0:00:00]} Ra3 {[%emt 0:00:00]} 48. Nxb5 {[%emt 0:00:00]} Bxb5 {[%emt 0:00:00]} 49. Rxb5 {[%emt 0:00:00]} Rb3 {[%emt 0:00:00]} 1/2-1/2

[Event "Int SVK-ch Open 2020"]
[Site "Drienica"]
[Date "2020.08.07"]
[Round "1.5"]
[White "Geffert Peter"]
[Black "Istona Martin"]
[Result "0-1"]
[ECO "B54"]
[WhiteElo "1857"]
[BlackElo "2267"]
[Annotator "RC"]
[PlyCount "60"]
[EventDate "2020.08.07"]
[EventType "swiss"]
[EventCountry "SVK"]
[SourceTitle "playchess.com"]
[Source "ChessBase"]
[SourceQuality "1"]
[TimeControl "40/5400+30:1800+30"]

1. e4 {[%emt 0:00:00]} c5 {[%emt 0:00:00]} 2. Nf3 {[%emt 0:00:00]} d6 {[%emt 0:00:02]} 3. d4 {[%emt 0:00:00]} cxd4 {[%emt 0:00:06]} 4. Nxd4 {[%emt 0:00:00]} e6 {[%emt 0:00:27]} 5. Nc3 {[%emt 0:00:41]} a6 {[%emt 0:00:28]} 6. Be3 {[%emt 0:01:06]} Ne7 {[%emt 0:00:08]} 7. Bc4 {[%emt 0:04:49]} Nec6 {[%emt 0:12:52]} 8. O-O {[%emt 0:03:20]} Be7 {[%emt 0:02:55]} 9. Qd2 {[%emt 0:02:02]} O-O {[%emt 0:00:38]} 10. Rad1 {[%emt 0:07:26]} b5 {[%emt 0:02:55]} 11. Bb3 {[%emt 0:01:33]} Nxd4 {[%emt 0:02:54]} 12. Bxd4 {[%emt 0:05:02]} Nc6 {[%emt 0:03:18]} 13. Ne2 {[%emt 0:03:30]} Bb7 {[%emt 0:08:17]} 14. Be3 {[%emt 0:05:20]} Ne5 {[%emt 0:03:27]} 15. f3 {[%emt 0:02:25]} Qc7 {[%emt 0:01:36]} 16. Nf4 {[%emt 0:07:23]} Rfc8 {[%emt 0:18:04]} 17. Qf2 {[%emt 0:17:17]} a5 {[%emt 0:13:28]} 18. Qg3 {[%emt 0:07:20]} Bf8 {[%emt 0:02:42]} 19. c3 {[%emt 0:06:40]} a4 {[%emt 0:01:56]} 20. Nxe6 {[%emt 0:03:29]} fxe6 {[%emt 0:06:12]} 21. Bxe6+ {[%emt 0:00:11]} Kh8 {[%emt 0:00:05]} 22. f4 {[%emt 0:03:45]} Nc4 {[%emt 0:02:34]} 23. Bd4 {[%emt 0:01:31]} Bxe4 {[%emt 0:01:37]} 24. f5 {[%emt 0:01:06]} d5 {[%emt 0:07:49]} 25. Qg5 {[%emt 0:05:53]} Bc5 {[%emt 0:01:49]} 26. f6 {[%emt 0:01:57]} Bxd4+ {[%emt 0:00:31]} 27. Rxd4 {[%emt 0:01:03]} Rf8 {[%emt 0:03:34]} 28. Bxd5 {[%emt 0:07:24]} Bxd5 {[%emt 0:01:40]} 29. Qxd5 {[%emt 0:01:22]} Ne3 {[%emt 0:01:14]} 30. fxg7+ {[%emt 0:00:46]} Qxg7 {[%emt 0:00:14]} 0-1